lending/lending_fUSD_20251016
["ID","MTS","AMOUNT","RATE_DAILY","PERIOD"]
[391537658,1760634642828,-398.7931304,0.0002487,3]
[391537720,1760634646210,-1922.17458374,0.0002487,3]
[391537723,1760634646221,-299.34200087,0.0002487,3]
[391537725,1760634646234,-15415.9811785,0.0002487,3]
[391537727,1760634646245,-253.52,0.0002487,3]
[391537729,1760634646257,-873.4288756,0.0002487,3]
[391537732,1760634646269,-7597.27804429,0.0002487,3]
[391537734,1760634646279,-500.0,0.00024878,2]
[391537735,1760634646288,-200.0,0.00024878,2]
[391537738,1760634646297,-200.0,0.00024878,2]
[391537740,1760634646307,-200.0,0.00024878,2]
[391537742,1760634646317,-500.0,0.00024879,2]
[391537744,1760634646329,-735.18,0.00024879,2]
[391537746,1760634646339,-951.54195571,0.0002488,2]
[391537748,1760634646350,-35729.19838756,0.0002488,2]
[391537750,1760634646361,-13103.93280274,0.0002488,2]
[391537752,1760634646373,-2310.28332296,0.0002488,2]
[391537755,1760634646384,-1759.0,0.0002488,2]
[391537758,1760634646405,-2722.46975,0.0002488,2]
[391537760,1760634646418,-3204.19664312,0.0002488,2]
[391537762,1760634646429,-151.0,0.00024896,7]
[391537764,1760634646439,-500.0,0.00024899,2]
[391537767,1760634646450,-500.0,0.00024899,2]
[391537769,1760634646460,-500.0,0.00024899,2]
[391537771,1760634646470,-500.0,0.00024899,2]
[391537773,1760634646480,-289.80335688,0.00024899,2]
[391537775,1760634646494,-210.19664312,0.00024899,2]
[391537777,1760634646504,-500.0,0.00024899,2]
[391537779,1760634646514,-708.12,0.00024899,2]
[391537781,1760634646524,-245.99021704,0.00024899,2]
[391537784,1760634646540,-462.12978296,0.00024899,2]
[391537786,1760634646550,-500.0,0.00024899,2]
[391537787,1760634646560,-500.0,0.00024899,2]
[391537790,1760634646570,-375.81665783,0.00024899,2]
[391537792,1760634646582,-124.18334217,0.00024899,2]
[391537794,1760634646591,-198.67909216,0.00024899,2]
[391537796,1760634646603,-301.32090784,0.00024899,2]
[391537798,1760634646614,-500.0,0.00024899,2]
[391537800,1760634646624,-131.82699967,0.00024899,2]
[391537802,1760634646636,-495.48300033,0.00024899,2]
[391537804,1760634646648,-162.67490371,0.00024899,2]
[391537807,1760634646661,-337.32509629,0.00024899,2]
[391537809,1760634646672,-500.0,0.00024899,2]
[391537811,1760634646683,-164.96,0.00024899,2]
[391537813,1760634646694,-246.03333526,0.00024899,2]
[391537815,1760634646707,-894.41666474,0.00024899,2]
[391537817,1760634646717,-423.50897267,0.00024899,2]
[391537819,1760634646727,-500.0,0.00024899,2]
[391537821,1760634646737,-508.79376071,0.00024899,2]
[391537823,1760634646747,-473.43555398,0.000249,3]
[391537826,1760634646759,-962.47647026,0.000249,3]
[391537828,1760634646771,-2324.29556668,0.000249,3]
[391538010,1760634828007,1530.71,0.00026165,120]
[391538012,1760635189976,152.0,0.00026,120]
[391538041,1760635639190,267.34870034,0.00027397,120]
[391538141,1760635831545,-1181.54655407,0.00013699,2]
[391538143,1760635831556,-1383.301,0.000147,2]
[391538146,1760635831570,-257.22329934,0.00014799,2]
[391538149,1760635831580,-300.0,0.00014899,2]
[391538151,1760635831590,-430.0,0.00014899,2]
[391538153,1760635831599,-300.0,0.00014899,2]
[391538155,1760635831609,-396.00959418,0.000149,2]
[391538156,1760635831619,-1194.58883521,0.000149,2]
[391538157,1760635831698,-614.81865459,0.000149,2]
[391538158,1760635831711,-302.61183806,0.000149,2]
[391538159,1760635831722,-1065.64063114,0.000149,2]
[391538160,1760635831734,-2547.61520763,0.000149,2]
[391538161,1760635831746,-189.28998538,0.000149,2]
[391538162,1760635831756,-500.58167261,0.00014973,2]
[391538163,1760635831766,-500.0,0.00014973,2]
[391538164,1760635831777,-500.0,0.00014973,2]
[391538165,1760635831787,-500.0,0.00014973,2]
[391538166,1760635831796,-215.48191186,0.0001499,2]
[391538167,1760635831806,-221.47,0.0001499,2]
[391538168,1760635831816,-500.0,0.00014999,2]
[391538169,1760635831828,-514.15531289,0.00014999,2]
[391538170,1760635831841,-469.22839935,0.00014999,2]
[391538171,1760635831853,-30.77160065,0.00014999,2]
[391538172,1760635831863,-276.8363991,0.00014999,2]
[391538173,1760635831872,-500.0,0.00014999,2]
[391538174,1760635831882,-500.0,0.00014999,2]
[391538175,1760635831892,-493.00256895,0.00014999,2]
[391538176,1760635831901,-226.45051534,0.00014999,2]
[391538177,1760635831911,-500.0,0.00014999,2]
[391538178,1760635831921,-500.0,0.00014999,2]
[391538179,1760635831930,-319.97104091,0.00014999,2]
[391538181,1760635831942,-180.02895909,0.00014999,2]
[391538183,1760635831952,-500.0,0.00014999,2]
[391538185,1760635831962,-500.0,0.00014999,2]
[391538186,1760635831971,-319.97104091,0.00014999,2]
[391538189,1760635831990,-180.02895909,0.00014999,2]
[391538191,1760635832000,-288.46566861,0.00014999,2]
[391538193,1760635832011,-211.53433139,0.00014999,2]
[391538195,1760635832021,-301.8102169,0.00014999,2]
[391538198,1760635832032,-198.1897831,0.00014999,2]
[391538200,1760635832042,-500.0,0.00014999,2]
[391538202,1760635832052,-500.0,0.00014999,2]
[391538203,1760635832063,-500.0,0.00014999,2]
[391538205,1760635832077,-500.0,0.00014999,2]
[391538207,1760635832087,-309.40623295,0.00014999,2]
[391538208,1760635832098,-223.38348555,0.00014999,2]
[391538210,1760635832108,-4574.26799491,0.00015,2]
[391538212,1760635832121,-1606.02552091,0.00015,2]
[391538215,1760635832134,-365.186577,0.00015,2]
[391538217,1760635832146,-824.38783658,0.00015,2]
[391538219,1760635832159,-1786.633875,0.00015,2]
[391538228,1760635837540,-1256.255,0.00015,2]
[391538229,1760635837552,-1236.72231603,0.00015,2]
[391538230,1760635837598,-2932.2,0.00015,2]
[391538231,1760635837611,-1479.30577632,0.00015,2]
[391538232,1760635837623,-1450.16940129,0.00015,2]
[391538233,1760635837639,-80677.97723831,0.00015,2]
[391538234,1760635837655,-1256.47073378,0.00015,2]
[391538362,1760635839617,-324.75551606,0.00015,2]
[391538363,1760635839628,-341103.47012452,0.00015,2]
[391538364,1760635839648,-238984.36613863,0.00015,2]
[391538365,1760635839707,-422.41337524,0.00015,2]
[391538366,1760635839719,-4255.9772616,0.00015,2]
[391538367,1760635839761,-1250.9,0.00015,2]
[391538368,1760635839773,-9033.83930341,0.00015,2]
[391538369,1760635839907,-920.0,0.00015,2]
[391538378,1760635843328,-2257.17715863,0.00014999,2]
[391538379,1760635843342,-26742.74663276,0.00015,2]
[391538380,1760635843354,-202820.433867,0.00015,2]
[391538390,1760635845645,-4912.18088695,0.00015,2]
[391538391,1760635845698,-16433.16872555,0.00015,2]
[391538392,1760635845711,-40110.68265453,0.00015,2]
[391538393,1760635845814,-13299.05063889,0.00015,2]
[391538394,1760635845876,-3264.6096,0.00015,2]
[391538571,1760637031736,-481.09,0.00013699,2]
[391538572,1760637031746,-250.0,0.00013717,2]
[391538573,1760637031756,-190.1183354,0.00013736,2]
[391538574,1760637031766,-195.0,0.00013774,2]
[391538575,1760637031775,-488.64905,0.00014824,2]
[391538576,1760637031785,-897.5468777,0.00014899,2]
[391538577,1760637031797,-260.55682032,0.00014899,2]
[391538578,1760637031825,-41.89630198,0.00014899,2]
[391538579,1760637031834,-254.71069188,0.00014899,2]
[391538580,1760637031847,-45.28930812,0.00014899,2]
[391538581,1760637031857,-2405.82559058,0.000149,2]
[391538582,1760637031871,-3346.05979601,0.000149,2]
[391538583,1760637031883,-689.66969719,0.000149,2]
[391538584,1760637031900,-5631.54546455,0.000149,2]
[391538585,1760637031912,-500.0,0.00014973,2]
[391538586,1760637031923,-500.0,0.00014973,2]
[391538587,1760637031936,-150.0,0.00014998,2]
[391538588,1760637031953,-500.0,0.00014999,2]
[391538589,1760637031964,-500.0,0.00014999,2]
[391538590,1760637031976,-500.0,0.00014999,2]
[391538591,1760637031988,-500.0,0.00014999,2]
[391538592,1760637032000,-500.0,0.00014999,2]
[391538593,1760637032011,-500.0,0.00014999,2]
[391538594,1760637032023,-500.0,0.00014999,2]
[391538595,1760637032034,-576.84054278,0.00014999,2]
[391538596,1760637032044,-500.0,0.00014999,2]
[391538597,1760637032054,-500.0,0.00014999,2]
[391538598,1760637032064,-84250.54926422,0.00015,2]
[391538599,1760637032108,-2300.0,0.00015,2]
[391538601,1760637032125,-979.56075487,0.00015,2]
[391538603,1760637032138,-1533.62696078,0.00015,2]
[391538605,1760637032154,-94045.18079126,0.00015,2]
[391538616,1760637037694,-452.11000654,0.00015,2]
[391538617,1760637037706,-794.72686892,0.00015,2]
[391538618,1760637037747,-2511.70002,0.00015,2]
[391538619,1760637037758,-569.19151934,0.00015,2]
[391538620,1760637037803,-12675.18968018,0.00015,2]
[391538621,1760637037814,-504.27185172,0.00015,2]
[391538622,1760637037826,-75760.46075118,0.00015,2]
[391538623,1760637037836,-29605.22858278,0.00015,2]
[391538624,1760637037857,-373.57020428,0.00015,2]
[391538728,1760637039755,-262.1865091,0.00015,2]
[391538729,1760637039766,-383.43817509,0.00015,2]
[391538730,1760637039866,-1631.8195103,0.00015,2]
[391538731,1760637039878,-6253.24868507,0.00015,2]
[391538732,1760637039890,-10665.29457206,0.00015,2]
[391538733,1760637039917,-515.83221588,0.00015,2]
[391538734,1760637039927,-1654.399232,0.00015,2]
[391538735,1760637039942,-1707.8620084,0.00015,2]
[391538736,1760637039957,-489.8764757,0.00015,2]
[391538737,1760637039969,-3170.8427828,0.00015,2]
[391538738,1760637039980,-2223.7985038,0.00015,2]
[391538739,1760637039990,-1086.47784,0.00015,2]
[391538740,1760637040000,-3972.6463317,0.00015,2]
[391538741,1760637040012,-92792.0310467,0.00015,2]
[391538742,1760637040023,-195.0,0.00015068,2]
[391538743,1760637040032,-2500.0,0.00015068,2]
[391538744,1760637040042,-300.0,0.00015068,2]
[391538745,1760637040052,-300.0,0.00015068,2]
[391538746,1760637040062,-2500.0,0.00015068,2]
[391538747,1760637040071,-250.0,0.00015068,2]
[391538748,1760637040081,-2777.72400082,0.00015107,2]
[391538750,1760637040090,-197.68437248,0.00015365,2]
[391538751,1760637040099,-445.0,0.00015747,2]
[391538752,1760637040109,-399.8044701,0.00015993,2]
[391538753,1760637040118,-217.0,0.00016123,2]
[391538754,1760637040127,-652.77552313,0.00016285,2]
[391538755,1760637040137,-420.0,0.00016308,2]
[391538756,1760637040146,-1446.0,0.00016389,2]
[391538757,1760637040159,-500.0,0.00016438,2]
[391538758,1760637040169,-5751.88538654,0.00016456,2]
[391538759,1760637040179,-6321.21516166,0.00016511,2]
[391538760,1760637040193,-204.0,0.0001661,2]
[391538762,1760637040202,-603.63335566,0.00016988,2]
[391538763,1760637040212,-1086.47785,0.00017,2]
[391538764,1760637040222,-886.4172122,0.00017124,2]
[391538765,1760637040231,-20704.7007479,0.00017124,2]
[391538766,1760637040240,-4339.7997614,0.00017285,2]
[391538767,1760637040250,-197.7864145,0.00017598,2]
[391538768,1760637040259,-4619.8431937,0.00017598,2]
[391538769,1760637040268,-157.8669664,0.00017689,2]
[391538770,1760637040277,-3765.91,0.00017728,2]
[391538771,1760637040286,-968.3402157,0.00017795,2]
[391538772,1760637040295,-415.0,0.0001785,2]
[391538773,1760637040305,-14973.46,0.00017924,2]
[391538774,1760637040314,-153.8230925,0.00017936,2]
[391538775,1760637040323,-808.57992114,0.00017982,2]
[391538776,1760637040332,-5751.88538654,0.00018011,2]
[391538777,1760637040342,-250.0,0.00018036,7]
[391538778,1760637040351,-6321.21516166,0.00018122,2]
[391538779,1760637040361,-296.16,0.00018144,2]
[391538780,1760637040370,-256.77,0.00018155,2]
[391538781,1760637040379,-448.64,0.00018164,2]
[391538782,1760637040389,-500.0,0.00018314,2]
[391538783,1760637040408,-787.79,0.0001832,30]
[391538784,1760637040419,-475.57272817,0.00018388,2]
[391538785,1760637040429,-1000.0,0.00018413,2]
[391538786,1760637040439,-1859.76455988,0.000185,2]
[391538787,1760637040450,-1014.3616174,0.00018977,2]
[391538788,1760637040463,-1086.47784,0.00019,2]
[391538789,1760637040473,-157.09,0.00019048,2]
[391538790,1760637040483,-500.0,0.00019178,2]
[391538791,1760637040493,-5751.88538654,0.00019567,2]
[391538792,1760637040503,-331.55,0.00019649,2]
[391538793,1760637040513,-6321.21516166,0.00019733,2]
[391538794,1760637040523,-331.55,0.00019786,2]
[391538795,1760637040533,-331.55,0.00019923,2]
[391538796,1760637040542,-1220.81129056,0.00019971,2]
[391538797,1760637040552,-153.8230925,0.0002005,2]
[391538798,1760637040562,-331.58,0.0002006,2]
[391538799,1760637040572,-481.09,0.00020187,2]
[391538800,1760637040582,-161.7355971,0.00020266,2]
[391538801,1760637040591,-19542.0,0.00020616,2]
[391538802,1760637040601,-1812.943,0.00020654,2]
[391538803,1760637040611,-2049.0,0.00020654,2]
[391538804,1760637040621,-749.0,0.00020654,2]
[391538805,1760637040631,-1267.0,0.00020654,2]
[391538806,1760637040641,-605.0,0.00020654,2]
[391538807,1760637040653,-1309.0,0.00020654,2]
[391538808,1760637040662,-571.0,0.00020654,2]
[391538809,1760637040676,-1546.0,0.00020654,2]
[391538810,1760637040686,-816.0,0.00020654,2]
[391538811,1760637040700,-2056.324,0.00020654,2]
[391538812,1760637040711,-556.0,0.00020654,2]
[391538813,1760637040721,-773.0,0.00020654,2]
[391538814,1760637040732,-4030.0,0.00020654,2]
[391538815,1760637040742,-1000.0,0.00020714,2]
[391538816,1760637040753,-150.07,0.00020749,2]
[391538817,1760637040763,-150.46,0.00020749,2]
[391538818,1760637040774,-151.67,0.00020749,2]
[391538819,1760637040784,-302.31,0.00020749,2]
[391538820,1760637040794,-151.33,0.00020749,2]
[391538821,1760637040803,-300.12,0.00020749,2]
[391538822,1760637040813,-150.22,0.00020749,2]
[391538823,1760637040823,-300.85,0.00020749,2]
[391538824,1760637041321,-305.98,0.00020749,2]
[391538825,1760637041346,-152.17,0.00020749,2]
[391538826,1760637041356,-301.94,0.00020749,2]
[391538827,1760637041365,-150.87,0.00020749,2]
[391538828,1760637041374,-301.33,0.00020749,2]
[391538829,1760637041384,-151.97,0.00020749,2]
[391538830,1760637041393,-305.01,0.00020749,2]
[391538831,1760637041405,-305.51,0.00020749,2]
[391538832,1760637041414,-152.05,0.00020749,2]
[391538833,1760637041424,-302.11,0.00020749,2]
[391538834,1760637041434,-151.0,0.00020749,2]
[391538835,1760637041444,-301.14,0.00020749,2]
[391538836,1760637041454,-302.88,0.00020749,2]
[391538837,1760637041464,-152.11,0.00020749,2]
[391538838,1760637041473,-303.8,0.00020752,2]
[391538839,1760637041482,-303.27,0.00020767,2]
[391538840,1760637041491,-303.77,0.00020848,2]
[391538841,1760637041501,-152.14,0.00020848,2]
[391538842,1760637041511,-152.74,0.00020848,2]
[391538843,1760637041519,-152.71,0.00020849,2]
[391538844,1760637041528,-152.91,0.00020849,2]
[391538845,1760637041539,-151.24,0.00020849,2]
[391538846,1760637041549,-150.55,0.00020849,2]
[391538847,1760637041558,-152.34,0.00020849,2]
[391538848,1760637041567,-300.62,0.00020849,2]
[391538849,1760637041576,-150.93,0.00020849,2]
[391538850,1760637041586,-151.85,0.00020849,2]
[391538851,1760637041595,-305.12,0.00020849,2]
[391538852,1760637041604,-152.82,0.00020849,2]
[391538853,1760637041614,-150.99,0.00020849,2]
[391538854,1760637041623,-152.55,0.00020849,2]
[391538855,1760637041632,-152.27,0.00020849,2]
[391538856,1760637041642,-150.33,0.00020849,2]
[391538857,1760637041652,-301.24,0.00020849,2]
[391538858,1760637041662,-150.72,0.00020849,2]
[391538859,1760637041673,-301.07,0.00020849,2]
[391538860,1760637041683,-150.56,0.00020849,2]
[391538861,1760637041693,-151.96,0.00020849,2]
[391538862,1760637041703,-150.91,0.00020849,2]
[391538863,1760637041713,-152.32,0.00020849,2]
[391538864,1760637041722,-300.1,0.00020849,2]
[391538865,1760637041732,-150.37,0.00020849,2]
[391538866,1760637041741,-151.49,0.00020849,2]
[391538867,1760637041751,-301.72,0.00020849,2]
[391538868,1760637041760,-152.24,0.00020849,2]
[391538869,1760637041770,-305.2,0.00020849,2]
[391538870,1760637041779,-151.68,0.00020849,2]
[391538871,1760637041789,-150.67,0.00020849,2]
[391538872,1760637041799,-150.9,0.00020849,2]
[391538873,1760637041808,-301.98,0.00020849,2]
[391538874,1760637041818,-150.78,0.00020849,2]
[391538875,1760637041828,-151.5,0.00020849,2]
[391538876,1760637041838,-302.53,0.00020849,2]
[391538877,1760637041847,-150.91,0.00020849,2]
[391538878,1760637041856,-300.19,0.00020849,2]
[391538879,1760637041865,-152.13,0.00020849,2]
[391538880,1760637041875,-151.38,0.00020849,2]
[391538881,1760637041884,-305.82,0.00020849,2]
[391538882,1760637041894,-152.8,0.00020849,2]
[391538883,1760637041905,-150.62,0.00020849,2]
[391538884,1760637041915,-305.22,0.00020849,2]
[391538885,1760637041935,-153.0,0.00020849,2]
[391538886,1760637041950,-151.36,0.00020849,2]
[391538887,1760637041960,-303.94,0.00020849,2]
[391538888,1760637041970,-151.4,0.00020849,2]
[391538889,1760637041980,-152.05,0.00020849,2]
[391538890,1760637041992,-151.26,0.00020849,2]
[391538891,1760637042002,-300.51,0.00020849,2]
[391538892,1760637042011,-151.71,0.00020849,2]
[391538893,1760637042025,-301.43,0.00020849,2]
[391538894,1760637042035,-305.48,0.00020849,2]
[391538895,1760637042046,-151.86,0.0002085,2]
[391538896,1760637042056,-152.81,0.0002085,2]
[391538897,1760637042066,-151.43,0.0002085,2]
[391538898,1760637042076,-152.51,0.0002085,2]
[391538899,1760637042087,-151.44,0.0002085,2]
[391538900,1760637042097,-151.6,0.0002085,2]
[391538901,1760637042106,-302.21,0.0002085,2]
[391538902,1760637042116,-151.53,0.0002085,2]
[391538903,1760637042127,-152.46,0.0002085,2]
[391538904,1760637042137,-302.63,0.0002085,2]
[391538905,1760637042147,-300.0,0.0002085,2]
[391538906,1760637042159,-151.55,0.0002085,2]
[391538907,1760637042170,-151.76,0.0002085,2]
[391538908,1760637042180,-301.25,0.0002085,2]
[391538909,1760637042190,-152.69,0.0002085,2]
[391538910,1760637042200,-151.78,0.0002085,2]
[391538911,1760637042210,-300.05,0.0002085,2]
[391538912,1760637042220,-150.89,0.0002085,2]
[391538913,1760637042230,-305.33,0.0002085,2]
[391538914,1760637042240,-303.77,0.0002085,2]
[391538915,1760637042250,-151.31,0.00020851,2]
[391538916,1760637042259,-300.26,0.00020851,2]
[391538917,1760637042269,-150.39,0.00020851,2]
[391538918,1760637042279,-150.75,0.00020851,2]
[391538919,1760637042289,-152.44,0.00020851,2]
[391538920,1760637042299,-150.71,0.00020851,2]
[391538921,1760637042309,-1427.81811401,0.00020965,2]
[391538922,1760637042318,-1086.47785,0.00021,2]
[391538923,1760637042329,-152.88,0.00021099,2]
[391538924,1760637042339,-150.47,0.00021099,2]
[391538925,1760637042348,-150.97,0.00021099,2]
[391538926,1760637042358,-152.24,0.00021099,2]
[391538927,1760637042367,-300.78,0.00021099,2]
[391538928,1760637042377,-151.2,0.00021099,2]
[391538929,1760637042386,-5751.88538654,0.00021122,2]
[391538930,1760637042396,-19718.35513975,0.000212,2]
[391538931,1760637042407,-166.66,0.0002133,2]
[391538932,1760637042416,-5000.0,0.00021333,2]
[391538933,1760637042427,-6321.21516166,0.00021344,2]
[391538934,1760637042437,-2000.0,0.000214,2]
[391538935,1760637042448,-157.09,0.00021428,2]
[391538936,1760637042459,-1124.961432,0.000215,2]
[391538937,1760637042469,-500.0,0.00021584,2]
[391538938,1760637042479,-346.50839489,0.00021638,2]
[391538939,1760637042494,-525.41,0.00021662,2]
[391538940,1760637042503,-166.66,0.00021779,2]
[391538941,1760637042514,-12620.99974085,0.00021824,2]
[391538942,1760637042566,-1090.9776,0.00021824,2]
[391538944,1760637042579,-4134.50265915,0.00021824,2]
[391538945,1760637042588,-490.69734115,0.00021918,2]
[391538950,1760637042887,-1215.6,0.00021918,2]
[391538951,1760637042899,-3293.70265885,0.00021918,2]
[391538952,1760637042911,-600.0,0.00021918,2]
[391538953,1760637042921,-229.08304948,0.00021918,2]
[391538954,1760637042931,-1635.30309879,0.0002196,2]
[391538955,1760637042943,-500.0,0.00021973,2]
[391538956,1760637042953,-150.98,0.0002199,2]
[391538957,1760637042963,-215.48191187,0.0002199,2]
[391538958,1760637042972,-500.0,0.00021999,2]
[391538959,1760637042982,-500.0,0.00021999,2]
[391538960,1760637042995,-1606.0,0.00022,2]
[391538961,1760637043005,-296706.80946638,0.00022,2]
[391538962,1760637043046,-390.34101392,0.00022,2]
[391538963,1760637043058,-343.542,0.00022,2]
[391538964,1760637043069,-1199.41489878,0.00022,2]
[391538965,1760637043102,-4174.33404447,0.00022,2]
[391538966,1760637043112,-322825.66595553,0.00022,4]
[391538967,1760637043124,-565.0373289,0.00022,4]
[391538968,1760637043136,-54410.0,0.00022,4]
[391538969,1760637043155,-5650.0,0.00022,4]
[391538970,1760637043316,-538.5,0.00022,4]
[391539038,1760637045889,-257.0,0.00020654,2]
[391539039,1760637045899,-17375.4045776,0.00022,4]
[391539040,1760637045954,-39690.39784416,0.00022,4]
[391539041,1760637045964,-555.07691965,0.00022,4]
[391539042,1760637045973,-207.90461794,0.00022,2]
[391539043,1760637045983,-579.09976006,0.00022,2]
[391539044,1760637045992,-564.82,0.00022,2]
[391539045,1760637046002,-153.8230925,0.00022164,2]
[391539046,1760637046011,-166.66,0.00022228,30]
[391539047,1760637046021,-600.0,0.00022466,2]
[391539048,1760637046030,-150.98,0.00022492,2]
[391539049,1760637046039,-500.0,0.00022502,2]
[391539050,1760637046048,-56349.81557022,0.00022502,2]
[391539051,1760637046060,-2291.97798304,0.00022502,2]
[391539058,1760637397934,857.08,0.00010665,2]
[391539059,1760637398157,857.08,0.00011227,2]
[391539060,1760637398412,857.08,0.00011788,2]
[391539061,1760637398661,857.08,0.00012349,2]
[391539062,1760637405637,-551.0321924,0.00012911,2]
[391539063,1760637408042,-189.10798735,0.00012911,2]
[391539073,1760637705123,-116.93982025,0.00012911,2]
[391539078,1760637871145,1224.56,0.0002529,120]
[391539123,1760638231919,-782.59605814,0.00013472,2]
[391539130,1760638231973,-74.48394186,0.00013472,2]
[391539131,1760638231983,-495.60605814,0.00013773,2]
[391539132,1760638231995,-291.67578486,0.00013773,2]
[391539133,1760638232005,-857.08,0.00014033,2]
[391539134,1760638232014,-857.08,0.00014595,2]
[391539135,1760638232024,-1200.0,0.00014801,2]
[391539136,1760638232033,-150.0,0.00014801,2]
[391539137,1760638232043,-195.0,0.00014802,2]
[391539138,1760638232053,-511.24079721,0.00014802,2]
[391539139,1760638232065,-1988.75920279,0.00014802,2]
[391539140,1760638232074,-2500.0,0.00014802,2]
[391539141,1760638232083,-2249.96250461,0.00014802,2]
[391539142,1760638232093,-300.0,0.00014802,2]
[391539143,1760638232102,-300.0,0.00014802,2]
[391539144,1760638232113,-300.0,0.00014802,2]
[391539145,1760638232123,-195.0,0.00014802,2]
[391539146,1760638232132,-548.64702421,0.00014802,2]
[391539147,1760638232142,-195.0,0.00014802,2]
[391539148,1760638232151,-150.0,0.00014802,2]
[391539149,1760638232161,-13127.59646178,0.00014954,2]
[391539150,1760638232171,-857.08,0.00015156,2]
[391539151,1760638232181,-857.08,0.00015718,2]
[391539152,1760638232190,-240.78232068,0.00015803,2]
[391539153,1760638232200,-151.0,0.00015985,2]
[391539154,1760638232211,-151.0,0.00015985,2]
[391539155,1760638232221,-151.0,0.00015985,2]
[391539156,1760638232231,-151.0,0.00015985,2]
[391539157,1760638232241,-151.0,0.00015985,2]
[391539158,1760638232252,-151.0,0.00015985,2]
[391539159,1760638232262,-151.0,0.00015985,2]
[391539160,1760638232271,-151.0,0.00015985,2]
[391539161,1760638232281,-200.0,0.00015985,2]
[391539162,1760638232291,-171.65884178,0.00015985,2]
[391539163,1760638232302,-275.22888194,0.00015985,2]
[391539164,1760638232314,-1005.16260501,0.00015994,2]
[391539165,1760638232324,-2668.37802748,0.00015995,2]
[391539166,1760638232336,-485.87772551,0.00015995,2]
[391539167,1760638232348,-268.3990187,0.00015995,2]
[391539168,1760638232361,-16295.70036806,0.00015995,2]
[391539169,1760638232371,-857.08,0.00016279,2]
[391539171,1760638232381,-336.0,0.00016487,2]
[391539172,1760638232391,-365.17249983,0.00016804,2]
[391539174,1760638232400,-857.08,0.0001684,2]
[391539176,1760638232410,-920.09457494,0.0001709,2]
[391539178,1760638232419,-857.08,0.00017402,2]
[391539180,1760638232428,-396.0,0.00017435,2]
[391539182,1760638232438,-189.0,0.0001747,2]
[391539184,1760638232448,-490.71556416,0.00017806,2]
[391539186,1760638232458,-857.08,0.00017963,2]
[391539188,1760638232467,-265.57556051,0.00018115,2]
[391539190,1760638232478,-1224.56,0.00018393,2]
[391539192,1760638232488,-666.0,0.00018399,3]
[391539194,1760638232497,-857.08,0.00018524,2]
[391539196,1760638232507,-154.23,0.00018529,2]
[391539198,1760638232516,-1791.63,0.00018533,2]
[391539200,1760638232525,-308.59,0.00018533,2]
[391539202,1760638232535,-2035.1,0.00018533,2]
[391539204,1760638232544,-9999.99,0.00018533,2]
[391539206,1760638232554,-150.99,0.00018533,2]
[391539208,1760638232563,-617.12293313,0.00018807,2]
[391539210,1760638232572,-857.08,0.00019086,2]
[391539214,1760638232581,-857.08,0.00019647,2]
[391539218,1760638232590,-160.0,0.00019684,2]
[391539221,1760638232599,-475.57272817,0.00019694,2]
[391539224,1760638232610,-2000.0,0.000197,2]
[391539226,1760638232619,-744.22336642,0.00019808,2]
[391539227,1760638232628,-421.61,0.00020189,2]
[391539229,1760638232637,-857.08,0.00020208,2]
[391539231,1760638232646,-448.93019671,0.00020577,2]
[391539232,1760638232656,-1224.56,0.00020692,2]
[391539233,1760638232665,-857.08,0.0002077,2]